Cogmind - Beta 9.2 @@@ ROGUE MODE // 2019.12.14 @ 21:10:58 Player: Exeight Result: Destroyed by S-10 Pest with Light Assault Rifle Performance ------------- Evolutions (0) 0 Regions Visited (2) 400 Robots Destroyed (22) 110 Value Destroyed (387) 387 Prototype IDs (4) 80 Alien Tech Used (0) 0 Bonus (0) 0 TOTAL SCORE: 977 Bonus ------- None Cogmind --------- Core Integrity 0/250 Matter 191/300 Energy 158/160 System Corruption 1% Temperature Cool (1) Movement Treading (160) Location -10/Mines Parts ------- > --- POWER (1) -------- Light Nuclear Core > --- PROPULSION (2) --- Light Treads > --- UTILITY (2) ------ Small Storage Unit Medium Storage Unit > --- WEAPON (2) ------- Particle Gun > --- INVENTORY (10) --- Improved Heat Sink Seismic Analyzer Peak State ------------ > --- POWER ------------ Light Nuclear Core > --- PROPULSION ------- Light Treads Light Treads > --- UTILITY ---------- Small Storage Unit > --- WEAPON ----------- Assault Rifle Light Assault Rifle > --- INVENTORY -------- Ion Engine Light Ion Engine Light Treads EM Pulse Gun Grenade Launcher [Rating: 8] Favorites ----------- Power Light Nuclear Core Engine Ion Engine Power Core Light Nuclear Core Propulsion Light Treads Treads Light Treads Utility Small Storage Unit Storage Small Storage Unit Weapon Assault Rifle Energy Gun EM Pulse Gun Ballistic Gun Assault Rifle Launcher Grenade Launcher Build | -11 -10 -10 ------- Run | Scr Mat Min Slots Evolved . | . . . Power . | . . . Propulsion . | . . . Utility . | . . . Weapon . | . . . Parts Attached 23 | 3 11 9 Power 4 | . 2 2 Engine 2 | . 1 1 Core 2 | . 1 1 Reactor . | . . . Propulsion 5 | 2 2 1 Treads 5 | 2 2 1 Leg . | . . . Wheel . | . . . Hover . | . . . Flight . | . . . Utility 2 | 1 1 . Device . | . . . Storage 2 | 1 1 . Processor . | . . . Hackware . | . . . Protection . | . . . Artifact . | . . . Weapon 12 | . 6 6 Energy Gun 7 | . 4 3 Energy Cannon . | . . . Ballistic Gun 3 | . 2 1 Ballistic Cannon . | . . . Launcher 2 | . . 2 Special Weapon . | . . . Impact Weapon . | . . . Slashing Weapon . | . . . Piercing Weapon . | . . . Special Melee Weapon . | . . . Unidentified Prototypes . | . . . Parts Lost 11 | . 3 8 Power 3 | . 1 2 Propulsion 3 | . 1 2 Utility . | . . . Weapon 5 | . 1 4 Highest Loss Streak 6 | . 1 6 Average Slot Usage (%) 76 | . 77 71 Engine 2 | . . 9 Core 4 | . 5 1 Treads 25 | . 28 16 Storage 19 | . 17 28 Energy Gun 4 | . 4 4 Ballistic Gun 17 | . 20 5 Naked Turns . | . . . Heaviest Build 23 | 4 20 23 Greatest Support 40 | 40 40 40 Greatest Overweight (x) 4 | . . 4 Average Overweight (x) . | . . . Largest Inventory Capacity 10 | 6 10 10 Average Capacity 7 | 5 6 10 Most Carried 6 | 5 6 5 Average Carried 4 | 3 5 2 Final Capacity 10 | 6 10 10 Final Carried 6 | 5 6 2 Class Distribution -------------------- 100% | Mutant Dominant Class ---------------- Mutant | -10/Materials Mutant | -10/Mines Resources | -11 -10 -10 ----------- Run | Scr Mat Min Matter Collected 473 | 223 151 99 Remotely . | . . . Salvage Created 484 | . 466 18 Parts 37 | . 37 . Haulers Intercepted . | . . . Recyclers Shooed 2 | . 2 . Parts Field Recycled . | . . . Retrieved Matter . | . . . Parts Self-Destructed . | . . . Prevented . | . . . Kills | -11 -10 -10 ------- Run | Scr Mat Min Combat Hostiles Destroyed 20 | . 14 6 Guns 13 | . 13 . AOE 7 | . 1 6 Classes Destroyed 5 | . 4 1 Operator 1 | . 1 . Watcher 1 | . 1 . Swarmer 6 | . 6 . Grunt 8 | . 8 . Assembled 6 | . . 6 Best Kill Streak 6 | . 3 6 Combat Bots Only 6 | . 3 6 Max Kills in Single Turn 2 | . 2 2 Gunslinging . | . . . Exploded 2 | . 1 2 Melee . | . . . Uniques/NPCs Destroyed . | . . . Combat | -11 -10 -10 -------- Run | Scr Mat Min Damage Taken 1315 | . 562 753 Core 251 | . 73 178 Absorbed by Shields . | . . . Core Remaining (%) 100 | 100 . . Volleys Fired 59 | . 41 18 Largest 2 | . 2 2 Hottest 86 | . 60 86 Shots Fired 96 | . 76 20 Gun 92 | . 76 16 Cannon . | . . . Launcher 4 | . . 4 Special . | . . . Kinetic 75 | . 66 9 Thermal 7 | . . 7 Explosive 4 | . . 4 Electromagnetic 10 | . 10 . Robot Hit Streak 11 | . 11 6 Robot Miss Streak 3 | . 2 3 Penetration Max . | . . . Secondary Targets . | . . . Shots Hit Robots 65 | . 53 12 Core Hits 37 | . 25 12 Critical Hits . | . . . Critical Kills . | . . . Critical Parts Destroyed . | . . . Melee Attacks . | . . . Impact . | . . . Slashing . | . . . Piercing . | . . . Sneak Attacks . | . . . Combat Hostiles . | . . . Follow-up Attacks . | . . . Damage Inflicted 1092 | . 692 400 Guns 715 | . 594 121 Cannons . | . . . Explosions 374 | . 95 279 Melee . | . . . Ramming 3 | . 3 . Kinetic 540 | . 492 48 Thermal 168 | . 95 73 Explosive 279 | . . 279 Electromagnetic 102 | . 102 . Impact . | . . . Slashing . | . . . Piercing . | . . . Highest Corruption 1 | . 1 1 Average Corruption 1 | . 1 1 Corruption Purged . | . . . Effects 6 | . 5 1 Message Errors 3 | . 2 1 Energy Discharges 1 | . 1 . Data Loss (minor) 1 | . 1 . Weapon Failures 1 | . 1 . Overload Shots . | . . . Overflow Damage 7 | . 7 . Projectiles . | . . . Explosions 7 | . 7 . Melee . | . . . Knockbacks . | . . . Impact . | . . . Kinetic . | . . . Secondary . | . . . Self-Inflicted Damage 111 | . 40 71 Shots 3 | . 1 2 Rammed 2 | . 2 . Targets Rammed 2 | . 2 . Kicked . | . . . Crushed . | . . . Highest Temperature 90 | . 14 90 Average Temperature 19 | . 4 49 Received Heat Transfer 291 | . 171 120 Siege Activations . | . . . Robots Corrupted . | . . . Combat Hostiles . | . . . Parts Fried . | . . . Impact Corruptions . | . . . Robots Melted . | . . . Combat Hostiles . | . . . Parts Melted . | . . . Heat Transferred 335 | . 150 185 Parts Sabotaged . | . . . Parts Stolen . | . . . Parts Stripped . | . . . Power Chain Reactions 1 | . 1 . Missiles Intercepted . | . . . Alert | -11 -10 -10 ------- Run | Scr Mat Min Peak Influence 254 | . 254 46 Average Influence 90 | . 122 9 Maximum Alert Level 1 | . 1 . Low Security (%) 81 | 100 74 100 Level 1 18 | . 25 . Level 2 . | . . . Level 3 . | . . . Level 4 . | . . . Level 5 . | . . . High Security . | . . . Max Security . | . . . Squads Dispatched 4 | . 4 . Investigation 1 | . 1 . Extermination . | . . . Reinforcement 3 | . 3 . Assault . | . . . Garrison . | . . . Intercept . | . . . Construction Impeded . | . . . Haulers Reinforced . | . . . Stealth | -11 -10 -10 --------- Run | Scr Mat Min Distress Signals 1 | . 1 . Communications Jammed . | . . . Distress Signals . | . . . Times Spotted 38 | . 25 13 Peak Tracking Total 5 | . 5 5 Tactical Retreats 1 | . . 1 Traps | -11 -10 -10 ------- Run | Scr Mat Min Traps Triggered 4 | . 4 . Indirectly . | . . . Trap Hack Attempts . | . . . Triggered . | . . . Disarmed . | . . . Reprogrammed . | . . . Reused . | . . . Traps Extracted . | . . . Installed . | . . . Triggered . | . . . Machines | -11 -10 -10 ---------- Run | Scr Mat Min Machines Disabled 1 | . 1 . Max in Single Turn 1 | . 1 . Machines Sabotaged . | . . . Garrisons Compromised . | . . . Overloaded Fab Kills . | . . . Fab Network Shutdowns . | . . . Hacking | -11 -10 -10 --------- Run | Scr Mat Min Machines Accessed 3 | . 3 . Terminals 3 | . 3 . Fabricators . | . . . Repair Stations . | . . . Recycling Units . | . . . Scanalyzers . | . . . Garrison Access . | . . . Total Hacks 5 | . 5 . Successful 4 | . 4 . Failed 1 | . 1 . Catastrophic . | . . . Database Lockouts . | . . . Manual . | . . . Terminals 5 | . 5 . Fabricators . | . . . Repair Stations . | . . . Recycling Units . | . . . Scanalyzers . | . . . Garrison Access . | . . . Terminal Hacks 4 | . 4 . Prototype ID Bank 2 | . 2 . Branch Access Points 1 | . 1 . Hauler Manifests 1 | . 1 . Fabricator Hacks . | . . . Repair Station Hacks . | . . . Recycling Unit Hacks . | . . . Scanalyzer . | . . . Garrison Access Hacks . | . . . Unauthorized Hacks . | . . . Terminals . | . . . Fabricators . | . . . Repair Stations . | . . . Recycling Units . | . . . Scanalyzers . | . . . Garrison Access . | . . . Data Cores Recovered . | . . . Used . | . . . Hacking Detections 2 | . 2 . Full Trace Events . | . . . Feedback Events . | . . . Feedback Blocked . | . . . Robot Schematics Acquired . | . . . Robots Built . | . . . Matter . | . . . Time . | . . . Total Robot Build Rating . | . . . Part Schematics Acquired . | . . . Parts Built . | . . . Matter . | . . . Time . | . . . Total Part Build Rating . | . . . Parts Repaired . | . . . Time . | . . . Parts Recycled . | . . . Recycled Matter . | . . . Retrieved Matter . | . . . Retrieved Components . | . . . Parts Scanalyzed . | . . . Part Schematics Acquired . | . . . Parts Damaged . | . . . Bothacking | -11 -10 -10 ------------ Run | Scr Mat Min Used RIF Installer . | . . . Robots Hacked . | . . . Non-combat . | . . . Combat . | . . . Robot Hacks Applied . | . . . Relay Couplers Released . | . . . Robots Rewired . | . . . Allies Hacked . | . . . Hacks Repelled . | . . . Allies | -11 -10 -10 -------- Run | Scr Mat Min Total Allies . | . . . Largest Group . | . . . Highest-Rated Group . | . . . Highest-Rated Ally . | . . . Total Orders . | . . . Ally Attacks . | . . . Total Damage . | . . . Kills . | . . . Allies Corrupted . | . . . Allies Melted . | . . . Intel | -11 -10 -10 ------- Run | Scr Mat Min Robot Analysis Total . | . . . Derelict Logs Recovered . | . . . Drone Launches . | . . . Drone Recoveries . | . . . Exploration | -11 -10 -10 ------------- Run | Scr Mat Min Turns Passed 1217 | 77 878 262 Spaces Moved 573 | 48 429 96 Core 22 | 9 . 13 Treads 551 | 39 429 83 Legs . | . . . Wheels . | . . . Hover . | . . . Flight . | . . . Fastest Speed 50 | 50 160 160 Average Speed 159 | 139 160 166 Slowest Speed 250 | 160 160 250 Overloaded Moves . | . . . Propulsion Burnouts . | . . . Robots Hopped . | . . . Cave-ins Triggered . | . . . Exploration Rate (%) 39 | 4 85 28 Regions Visited 2 Branch Regions 1 Pre-discovered Areas . | . . . Known Exits Taken 1 | . 1 . Unknown Exits Taken 1 | 1 . . Scrap Searched 1 | . . 1 Spaces Dug . | . . . Terrain Destroyed 28 | . 2 26 Melee . | . . . Projectile . | . . . AOE 28 | . 2 26 Actions | -11 -10 -10 --------- Run | Scr Mat Min Total 783 | 58 547 178 Wait 104 | . 53 51 Move 571 | 47 428 96 Hop . | . . . Pick Up 21 | 8 9 4 Fast Attach 2 | . 2 . Attach 18 | 3 7 8 Detach . | . . . Swap 3 | . 2 1 Drop 3 | . 3 . Fire 59 | . 41 18 Melee . | . . . Ram . | . . . Kick . | . . . Crush 2 | . 2 . Escape Stasis . | . . . Rewire . | . . . Trap . | . . . Miscellaneous . | . . . Route ------- -11/Scrapyard -10/Materials (discovered 3 exits: [*Mat] / *Min x2) -10/Mines History --------- Turn | Location | Event 4 | -11/Scrapyard | Discovered new exit (range 15) 78 | -11/Scrapyard | Entered Materials 144 | -10/Materials | Identified exit to Mines 307 | -10/Materials | Build established: Mutant 866 | -10/Materials | Discovered new exit (range 16) 956 | -10/Materials | Entered Mines 963 | -10/Mines | Assembled infested the area 1035 | -10/Mines | Core integrity fell below 50% 1072 | -10/Mines | Lost 6 parts (1p2n3w) 1163 | -10/Mines | Core integrity fell below 20% 1218 | -10/Mines | Destroyed by S-10 Pest with Light Assault Rifle Last Messages --------------- Lgt. Treads destroyed. Destroyed Asb. Hover Unit. Beam Rifle destroyed. as-36998 destroyed. as-99805 destroyed. Lgt. Treads destroyed. as-43505 destroyed. Grenade Launcher destroyed. OY/1ZQ|LHN Q=VK